[Event "*** Titled Tuesday Blitz"]
[Site "Chess.com"]
[Date "2021.04.06"]
[Round "2"]
[White "Caterpiller35"]
[Black "semchik73"]
[Result "1-0"]
[WhiteElo "2450"]
[BlackElo "2231"]
[TimeControl "180+1"]
[EndTime "10:17:10 PDT"]
[Termination "Caterpiller35 won by checkmate"]

1. d4 {[%clk 0:03:00]} 1... d5 {[%clk 0:02:59.8]} 2. Bf4 {[%clk 0:02:59.9]} 2...
Nf6 {[%clk 0:02:59.4]} 3. e3 {[%clk 0:03:00.2]} 3... c6 {[%clk 0:02:58.4]} 4. c4
{[%clk 0:03:00]} 4... e6 {[%clk 0:02:57.8]} 5. Nc3 {[%clk 0:03:00]} 5... Bd6
{[%clk 0:02:58.1]} 6. Bg3 {[%clk 0:03:00]} 6... O-O {[%clk 0:02:57.3]} 7. Qc2
{[%clk 0:03:00.2]} 7... Qc7 {[%clk 0:02:48.6]} 8. Nf3 {[%clk 0:03:00.4]} 8...
Nbd7 {[%clk 0:02:47.2]} 9. c5 {[%clk 0:02:57.5]} 9... Bxg3 {[%clk 0:02:45.9]}
10. hxg3 {[%clk 0:02:58.4]} 10... e5 {[%clk 0:02:42.9]} 11. dxe5 {[%clk
0:02:54.1]} 11... Nxe5 {[%clk 0:02:42.4]} 12. Nxe5 {[%clk 0:02:54.5]} 12... Qxe5
{[%clk 0:02:42.2]} 13. Bd3 {[%clk 0:02:55.2]} 13... h6 {[%clk 0:02:40.7]} 14.
O-O-O {[%clk 0:02:55.2]} 14... Bg4 {[%clk 0:02:37.2]} 15. Rde1 {[%clk
0:02:51.7]} 15... d4 {[%clk 0:02:36.1]} 16. exd4 {[%clk 0:02:45.4]} 16... Qxd4
{[%clk 0:02:36.1]} 17. Ne4 {[%clk 0:02:36.2]} 17... Nd5 {[%clk 0:02:29.9]} 18.
a3 {[%clk 0:02:29.6]} 18... Rad8 {[%clk 0:02:26.7]} 19. Rh4 {[%clk 0:02:28.4]}
19... Be6 {[%clk 0:02:04.6]} 20. Nd6 {[%clk 0:01:56.8]} 20... Qf6 {[%clk
0:02:03]} 21. f4 {[%clk 0:01:47.7]} 21... b6 {[%clk 0:02:00.7]} 22. Ne4 {[%clk
0:01:37.4]} 22... Qd4 {[%clk 0:01:56.2]} 23. Ng5 {[%clk 0:01:25.1]} 23... Ne3
{[%clk 0:01:50.9]} 24. Bh7+ {[%clk 0:00:47]} 24... Kh8 {[%clk 0:01:49.9]} 25.
Qe2 {[%clk 0:00:28.7]} 25... Qxc5+ {[%clk 0:01:39.9]} 26. Kb1 {[%clk 0:00:28.6]}
26... hxg5 {[%clk 0:01:05]} 27. Bf5+ {[%clk 0:00:20]} 27... gxh4 {[%clk
0:01:03.3]} 28. Qh5+ {[%clk 0:00:19.8]} 28... Kg8 {[%clk 0:01:02.5]} 29. Qh7#
{[%clk 0:00:20.7]} 1-0

[Event "*** Titled Tuesday Blitz"]
[Site "Chess.com"]
[Date "2021.04.06"]
[Round "2"]
[White "DrMamaliga"]
[Black "AungTZ"]
[Result "1-0"]
[WhiteElo "2390"]
[BlackElo "2067"]
[TimeControl "180+1"]
[EndTime "10:17:10 PDT"]
[Termination "DrMamaliga won by resignation"]

1. c4 {[%clk 0:03:00.9]} 1... e5 {[%clk 0:02:35.3]} 2. Nf3 {[%clk 0:03:01.8]}
2... Nc6 {[%clk 0:02:34.1]} 3. Nc3 {[%clk 0:03:01.6]} 3... Nf6 {[%clk
0:02:32.3]} 4. e3 {[%clk 0:03:01.7]} 4... d5 {[%clk 0:02:31.6]} 5. cxd5 {[%clk
0:03:01.5]} 5... Nxd5 {[%clk 0:02:32.5]} 6. Bb5 {[%clk 0:03:01.5]} 6... Nxc3
{[%clk 0:02:30.5]} 7. bxc3 {[%clk 0:03:02.4]} 7... Bd6 {[%clk 0:02:29]} 8. d4
{[%clk 0:03:02.7]} 8... exd4 {[%clk 0:02:27.9]} 9. cxd4 {[%clk 0:03:03.6]} 9...
Bd7 {[%clk 0:02:27.7]} 10. O-O {[%clk 0:03:02.9]} 10... O-O {[%clk 0:02:27]} 11.
Bb2 {[%clk 0:03:01.2]} 11... Bg4 {[%clk 0:02:05.8]} 12. h3 {[%clk 0:02:58.4]}
12... Bh5 {[%clk 0:02:05]} 13. Be2 {[%clk 0:02:58]} 13... Re8 {[%clk 0:02:00.9]}
14. Qd2 {[%clk 0:02:55.1]} 14... Nb4 {[%clk 0:01:44.2]} 15. Kh1 {[%clk
0:02:12.3]} 15... Nd5 {[%clk 0:01:41.7]} 16. Ne1 {[%clk 0:02:05.9]} 16... Bg6
{[%clk 0:01:32.8]} 17. Nd3 {[%clk 0:01:57.6]} 17... c6 {[%clk 0:01:32.4]} 18.
Bf3 {[%clk 0:01:57.2]} 18... Bc7 {[%clk 0:01:23.1]} 19. Rae1 {[%clk 0:01:55.7]}
19... Be4 {[%clk 0:01:09.8]} 20. Bxe4 {[%clk 0:01:52.1]} 20... Rxe4 {[%clk
0:01:08]} 21. f3 {[%clk 0:01:37.8]} 21... Qd6 {[%clk 0:00:58.8]} 22. Ne5 {[%clk
0:01:32.1]} 22... Rh4 {[%clk 0:00:40.8]} 23. e4 {[%clk 0:01:31.5]} 23... Nf4
{[%clk 0:00:30.6]} 24. Qf2 {[%clk 0:01:11.3]} 24... Qh6 {[%clk 0:00:19.5]} 25.
Ng4 {[%clk 0:01:04.2]} 25... Qe6 {[%clk 0:00:14.2]} 26. Qxh4 {[%clk 0:01:01.3]}
1-0

[Event "*** Titled Tuesday Blitz"]
[Site "Chess.com"]
[Date "2021.04.06"]
[Round "2"]
[White "Kostukov_Alex"]
[Black "Artyom_ChessMate"]
[Result "0-1"]
[WhiteElo "2294"]
[BlackElo "2542"]
[TimeControl "180+1"]
[EndTime "10:17:11 PDT"]
[Termination "Artyom_ChessMate won by resignation"]

1. g3 {[%clk 0:03:00.9]} 1... d5 {[%clk 0:02:59.8]} 2. Bg2 {[%clk 0:03:01.1]}
2... Nf6 {[%clk 0:03:00.7]} 3. d3 {[%clk 0:03:01.2]} 3... e6 {[%clk 0:03:01.6]}
4. e4 {[%clk 0:03:01.1]} 4... Be7 {[%clk 0:03:02.5]} 5. Qe2 {[%clk 0:02:57.8]}
5... O-O {[%clk 0:03:02.3]} 6. Nf3 {[%clk 0:02:57.9]} 6... a5 {[%clk 0:03:02.3]}
7. O-O {[%clk 0:02:56.6]} 7... a4 {[%clk 0:03:02.4]} 8. c4 {[%clk 0:02:53.9]}
8... b6 {[%clk 0:02:46.2]} 9. e5 {[%clk 0:02:52.9]} 9... Ne8 {[%clk 0:02:39.4]}
10. Nc3 {[%clk 0:02:49.5]} 10... Bb7 {[%clk 0:02:37.1]} 11. Bf4 {[%clk
0:02:46.9]} 11... a3 {[%clk 0:02:37.2]} 12. b3 {[%clk 0:02:45.6]} 12... Bb4
{[%clk 0:02:33.8]} 13. Rac1 {[%clk 0:02:44.4]} 13... Nd7 {[%clk 0:02:29.5]} 14.
h4 {[%clk 0:02:42.4]} 14... f6 {[%clk 0:01:57.9]} 15. cxd5 {[%clk 0:02:27.4]}
15... fxe5 {[%clk 0:01:57.3]} 16. Nxe5 {[%clk 0:02:21.3]} 16... Bxc3 {[%clk
0:01:50.6]} 17. Nxd7 {[%clk 0:02:14.3]} 17... Qxd7 {[%clk 0:01:34.9]} 18. dxe6
{[%clk 0:02:13.5]} 18... Qe7 {[%clk 0:01:34.7]} 19. Bxb7 {[%clk 0:02:10.8]}
19... Rb8 {[%clk 0:01:34.7]} 20. Bg2 {[%clk 0:02:03.4]} 20... Bb4 {[%clk
0:01:31.6]} 21. d4 {[%clk 0:02:00]} 21... Rxf4 {[%clk 0:01:24.6]} 22. gxf4
{[%clk 0:01:59.2]} 22... Bd6 {[%clk 0:01:25.5]} 23. Qg4 {[%clk 0:01:51.4]} 23...
Nf6 {[%clk 0:01:24.8]} 24. Qg5 {[%clk 0:01:49.5]} 24... h6 {[%clk 0:01:25]} 25.
Qf5 {[%clk 0:01:49.2]} 25... Rf8 {[%clk 0:01:24.5]} 26. d5 {[%clk 0:01:43.3]}
26... Ne8 {[%clk 0:01:23.9]} 27. Qg6 {[%clk 0:01:41]} 27... Rxf4 {[%clk
0:01:22.3]} 28. Be4 {[%clk 0:01:38.9]} 28... Qxh4 {[%clk 0:01:17.7]} 29. Qxe8+
{[%clk 0:01:29.2]} 29... Bf8 {[%clk 0:01:00.3]} 30. Bg2 {[%clk 0:01:27.6]} 30...
Rg4 {[%clk 0:00:56.8]} 31. Qf7+ {[%clk 0:01:22.7]} 31... Kh7 {[%clk 0:00:56.1]}
32. Rc3 {[%clk 0:01:12.2]} 32... Bd6 {[%clk 0:00:49.8]} 33. Rh3 {[%clk
0:01:11.2]} 33... Qxh3 {[%clk 0:00:42]} 34. Qf5+ {[%clk 0:01:09.4]} 34... Kh8
{[%clk 0:00:42.2]} 0-1

[Event "*** Titled Tuesday Blitz"]
[Site "Chess.com"]
[Date "2021.04.06"]
[Round "2"]
[White "szachuspl"]
[Black "Oleksandr_Bortnyk"]
[Result "0-1"]
[WhiteElo "2569"]
[BlackElo "2938"]
[TimeControl "180+1"]
[EndTime "10:17:23 PDT"]
[Termination "Oleksandr_Bortnyk won on time"]

1. d4 {[%clk 0:03:00.9]} 1... d6 {[%clk 0:02:55.3]} 2. Nf3 {[%clk 0:02:59.9]}
2... Nf6 {[%clk 0:02:55]} 3. c4 {[%clk 0:02:59.9]} 3... g6 {[%clk 0:02:55.4]} 4.
Nc3 {[%clk 0:03:00]} 4... Bf5 {[%clk 0:02:56.1]} 5. g3 {[%clk 0:02:51.4]} 5...
Bg7 {[%clk 0:02:55.8]} 6. Bg2 {[%clk 0:02:51.9]} 6... O-O {[%clk 0:02:55.3]} 7.
O-O {[%clk 0:02:52.2]} 7... Ne4 {[%clk 0:02:55.3]} 8. Qb3 {[%clk 0:02:44.9]}
8... Nxc3 {[%clk 0:02:54.9]} 9. bxc3 {[%clk 0:02:39.4]} 9... Be4 {[%clk
0:02:52.6]} 10. a4 {[%clk 0:02:35.8]} 10... b6 {[%clk 0:02:45.5]} 11. a5 {[%clk
0:02:33.4]} 11... Nc6 {[%clk 0:02:45.4]} 12. axb6 {[%clk 0:02:32.3]} 12... axb6
{[%clk 0:02:46.3]} 13. Rxa8 {[%clk 0:02:31.7]} 13... Qxa8 {[%clk 0:02:47.2]} 14.
Bb2 {[%clk 0:02:21.5]} 14... Na5 {[%clk 0:02:42.9]} 15. Qb4 {[%clk 0:02:19.4]}
15... Qc6 {[%clk 0:02:42.8]} 16. c5 {[%clk 0:02:09.8]} 16... bxc5 {[%clk
0:02:40.5]} 17. dxc5 {[%clk 0:02:10]} 17... dxc5 {[%clk 0:02:41.4]} 18. Qxa5
{[%clk 0:01:38.2]} 18... Ra8 {[%clk 0:02:41.1]} 19. Ne5 {[%clk 0:01:11.8]} 19...
Bxe5 {[%clk 0:02:40.2]} 20. Bxe4 {[%clk 0:01:11.8]} 20... Qxe4 {[%clk
0:02:40.2]} 21. Qxc5 {[%clk 0:01:12.1]} 21... Bd6 {[%clk 0:02:20]} 22. Qb5
{[%clk 0:00:59.7]} 22... h5 {[%clk 0:02:13.9]} 23. Qd3 {[%clk 0:00:57.6]} 23...
Qb7 {[%clk 0:01:42.4]} 24. Bc1 {[%clk 0:00:56.2]} 24... Ra1 {[%clk 0:01:42.5]}
25. f3 {[%clk 0:00:52.4]} 25... h4 {[%clk 0:01:38.1]} 26. Bf4 {[%clk 0:00:47.5]}
26... Ra4 {[%clk 0:01:25.6]} 27. Bxd6 {[%clk 0:00:42.4]} 27... cxd6 {[%clk
0:01:26.5]} 28. Kg2 {[%clk 0:00:42]} 28... Qd7 {[%clk 0:01:21.3]} 29. c4 {[%clk
0:00:37.6]} 29... h3+ {[%clk 0:01:20.8]} 30. Kf2 {[%clk 0:00:37.5]} 30... Qe6
{[%clk 0:01:21.7]} 31. Rc1 {[%clk 0:00:36.5]} 31... Ra2 {[%clk 0:01:19.4]} 32.
Rc2 {[%clk 0:00:35.3]} 32... Ra1 {[%clk 0:01:18.7]} 33. g4 {[%clk 0:00:23.3]}
33... Qe5 {[%clk 0:01:14.3]} 0-1

[Event "*** Titled Tuesday Blitz"]
[Site "Chess.com"]
[Date "2021.04.06"]
[Round "2"]
[White "Guzman70"]
[Black "stanyga"]
[Result "0-1"]
[WhiteElo "2332"]
[BlackElo "2626"]
[TimeControl "180+1"]
[EndTime "10:17:23 PDT"]
[Termination "stanyga won by checkmate"]

1. d4 {[%clk 0:03:00.9]} 1... d5 {[%clk 0:02:59]} 2. Bf4 {[%clk 0:03:00.2]} 2...
Nf6 {[%clk 0:02:57.2]} 3. e3 {[%clk 0:03:00]} 3... g6 {[%clk 0:02:55.7]} 4. Nf3
{[%clk 0:02:55.8]} 4... Bg7 {[%clk 0:02:55.3]} 5. c4 {[%clk 0:02:54.4]} 5... O-O
{[%clk 0:02:53.4]} 6. Nc3 {[%clk 0:02:53.7]} 6... c5 {[%clk 0:02:53]} 7. dxc5
{[%clk 0:02:51.5]} 7... Be6 {[%clk 0:02:47.8]} 8. Nd4 {[%clk 0:02:45]} 8... Nc6
{[%clk 0:02:46.9]} 9. Nxe6 {[%clk 0:02:44.2]} 9... fxe6 {[%clk 0:02:46.3]} 10.
a3 {[%clk 0:02:33.8]} 10... e5 {[%clk 0:02:05.5]} 11. cxd5 {[%clk 0:02:15.5]}
11... exf4 {[%clk 0:02:01.3]} 12. dxc6 {[%clk 0:02:15.5]} 12... Qc7 {[%clk
0:01:49.5]} 13. Nd5 {[%clk 0:01:52.2]} 13... Nxd5 {[%clk 0:01:44.1]} 14. Qxd5+
{[%clk 0:01:53.1]} 14... e6 {[%clk 0:01:43.7]} 15. Qxe6+ {[%clk 0:01:43.9]}
15... Kh8 {[%clk 0:01:43.2]} 16. cxb7 {[%clk 0:01:36]} 16... Rae8 {[%clk
0:01:41.6]} 17. Qd6 {[%clk 0:01:24]} 17... Qxb7 {[%clk 0:01:41]} 18. Bc4 {[%clk
0:01:06.8]} 18... Qxg2 {[%clk 0:01:01.4]} 19. O-O-O {[%clk 0:01:02.2]} 19...
fxe3 {[%clk 0:01:00.2]} 20. Qg3 {[%clk 0:00:21.9]} 20... Qe4 {[%clk 0:00:50.4]}
21. Bd3 {[%clk 0:00:17.9]} 21... Qd4 {[%clk 0:00:49.4]} 22. fxe3 {[%clk
0:00:05.1]} 22... Qxb2# {[%clk 0:00:48]} 0-1

[Event "*** Titled Tuesday Blitz"]
[Site "Chess.com"]
[Date "2021.04.06"]
[Round "2"]
[White "Orzechowski_Jacek"]
[Black "Willhaven3"]
[Result "0-1"]
[WhiteElo "2209"]
[BlackElo "2522"]
[TimeControl "180+1"]
[EndTime "10:17:23 PDT"]
[Termination "Willhaven3 won on time"]

1. c4 {[%clk 0:03:00.9]} 1... Nf6 {[%clk 0:02:59.3]} 2. Nc3 {[%clk 0:03:00.7]}
2... e6 {[%clk 0:02:58.9]} 3. e4 {[%clk 0:03:00.2]} 3... d5 {[%clk 0:02:59.1]}
4. exd5 {[%clk 0:03:01.1]} 4... exd5 {[%clk 0:02:59.7]} 5. d4 {[%clk 0:03:01.9]}
5... Be7 {[%clk 0:02:50]} 6. Nf3 {[%clk 0:03:00.1]} 6... O-O {[%clk 0:02:50.4]}
7. Bd3 {[%clk 0:03:00.2]} 7... dxc4 {[%clk 0:02:50.2]} 8. Bxc4 {[%clk
0:03:01.1]} 8... Nbd7 {[%clk 0:02:50]} 9. h3 {[%clk 0:02:55.3]} 9... Nb6 {[%clk
0:02:49.5]} 10. Bb3 {[%clk 0:02:52.9]} 10... c6 {[%clk 0:02:49.6]} 11. O-O
{[%clk 0:02:52]} 11... Bf5 {[%clk 0:02:47.1]} 12. Ne5 {[%clk 0:02:51.7]} 12...
Nbd5 {[%clk 0:02:46.6]} 13. Re1 {[%clk 0:02:13.2]} 13... a5 {[%clk 0:02:44.2]}
14. Qf3 {[%clk 0:02:02.2]} 14... Be6 {[%clk 0:02:42.4]} 15. Bg5 {[%clk
0:01:51.8]} 15... Nc7 {[%clk 0:02:22.2]} 16. Bc2 {[%clk 0:01:35.1]} 16... Qxd4
{[%clk 0:02:14.2]} 17. Rad1 {[%clk 0:01:35.7]} 17... Qb4 {[%clk 0:02:06.9]} 18.
Nd3 {[%clk 0:00:39.3]} 18... Qb6 {[%clk 0:01:56]} 19. Ne4 {[%clk 0:00:22.6]}
19... Ncd5 {[%clk 0:01:50.4]} 20. Nxf6+ {[%clk 0:00:19.4]} 20... Bxf6 {[%clk
0:01:47.9]} 21. Bxf6 {[%clk 0:00:18.1]} 21... Nxf6 {[%clk 0:01:48.4]} 22. Nf4
{[%clk 0:00:09.2]} 22... Qxb2 {[%clk 0:01:33.7]} 23. Re2 {[%clk 0:00:08.7]}
23... Qb4 {[%clk 0:01:18.4]} 24. Nxe6 {[%clk 0:00:07]} 24... fxe6 {[%clk
0:01:19.3]} 25. Rxe6 {[%clk 0:00:05.7]} 25... Rad8 {[%clk 0:01:17.4]} 26. Rde1
{[%clk 0:00:04.5]} 26... Rd7 {[%clk 0:01:06.1]} 27. Bb3 {[%clk 0:00:03.2]} 27...
Kh8 {[%clk 0:01:03.8]} 0-1

[Event "*** Titled Tuesday Blitz"]
[Site "Chess.com"]
[Date "2021.04.06"]
[Round "2"]
[White "albi1999"]
[Black "queen_iryna"]
[Result "1-0"]
[WhiteElo "2603"]
[BlackElo "2324"]
[TimeControl "180+1"]
[EndTime "10:17:25 PDT"]
[Termination "albi1999 won by resignation"]

1. Nf3 {[%clk 0:03:00.5]} 1... d6 {[%clk 0:02:58.4]} 2. g3 {[%clk 0:02:59.9]}
2... e5 {[%clk 0:02:58.1]} 3. Bg2 {[%clk 0:02:59.5]} 3... f5 {[%clk 0:02:57.4]}
4. O-O {[%clk 0:02:55.2]} 4... Nf6 {[%clk 0:02:57.3]} 5. d4 {[%clk 0:02:51.4]}
5... e4 {[%clk 0:02:57]} 6. Ng5 {[%clk 0:02:47.8]} 6... g6 {[%clk 0:02:51.9]} 7.
c4 {[%clk 0:02:45.3]} 7... Bg7 {[%clk 0:02:51.8]} 8. f3 {[%clk 0:02:44]} 8...
exf3 {[%clk 0:02:50.7]} 9. exf3 {[%clk 0:02:44.4]} 9... O-O {[%clk 0:02:50.3]}
10. Nc3 {[%clk 0:02:44]} 10... c6 {[%clk 0:02:50.4]} 11. Re1 {[%clk 0:02:26.3]}
11... Na6 {[%clk 0:02:47.9]} 12. Bf4 {[%clk 0:02:17.8]} 12... Nc7 {[%clk
0:02:44.7]} 13. Qd2 {[%clk 0:02:15.1]} 13... Nh5 {[%clk 0:02:27.7]} 14. Be3
{[%clk 0:02:10.4]} 14... f4 {[%clk 0:02:27.6]} 15. gxf4 {[%clk 0:02:10.8]} 15...
Bf5 {[%clk 0:02:24.8]} 16. Nce4 {[%clk 0:01:58.1]} 16... Qd7 {[%clk 0:02:18.5]}
17. Ng3 {[%clk 0:01:56.4]} 17... h6 {[%clk 0:01:59.1]} 18. Nxf5 {[%clk
0:01:54.2]} 18... Qxf5 {[%clk 0:02:00]} 19. Bh3 {[%clk 0:01:52.8]} 19... Qf6
{[%clk 0:01:53.6]} 20. Ne4 {[%clk 0:01:53]} 20... Qh4 {[%clk 0:01:53.5]} 21. Bg4
{[%clk 0:01:45.5]} 21... d5 {[%clk 0:01:41]} 22. Bf2 {[%clk 0:01:38.6]} 22...
Qd8 {[%clk 0:01:35.8]} 23. Bxh5 {[%clk 0:01:34.1]} 23... gxh5 {[%clk 0:01:36.7]}
24. Ng3 {[%clk 0:01:31.4]} 24... dxc4 {[%clk 0:01:28.9]} 25. Nxh5 {[%clk
0:01:31]} 25... Nd5 {[%clk 0:01:23.7]} 26. Kh1 {[%clk 0:01:30.1]} 26... Nf6
{[%clk 0:00:56.4]} 27. Nxg7 {[%clk 0:01:26.2]} 27... Kxg7 {[%clk 0:00:57.3]} 28.
Rg1+ {[%clk 0:01:24.6]} 28... Kh8 {[%clk 0:00:51.6]} 29. f5 {[%clk 0:01:24.5]}
29... Nh7 {[%clk 0:00:40.4]} 30. Qxh6 {[%clk 0:01:22.3]} 30... Qf6 {[%clk
0:00:40.1]} 31. Rg6 {[%clk 0:01:18.8]} 31... Qf7 {[%clk 0:00:32]} 32. d5 {[%clk
0:01:11.8]} 32... c5 {[%clk 0:00:16.7]} 33. Bxc5 {[%clk 0:01:10]} 33... Rg8
{[%clk 0:00:07.7]} 34. Bd4+ {[%clk 0:01:08.7]} 1-0

[Event "*** Titled Tuesday Blitz"]
[Site "Chess.com"]
[Date "2021.04.06"]
[Round "2"]
[White "IngOscarArdila"]
[Black "FMnotanIM"]
[Result "0-1"]
[WhiteElo "2203"]
[BlackElo "2602"]
[TimeControl "180+1"]
[EndTime "10:17:27 PDT"]
[Termination "FMnotanIM won on time"]

1. d4 {[%clk 0:02:53.9]} 1... Nf6 {[%clk 0:02:59.8]} 2. c4 {[%clk 0:02:45.1]}
2... g6 {[%clk 0:02:59.3]} 3. Nc3 {[%clk 0:02:44]} 3... d5 {[%clk 0:02:59.8]} 4.
cxd5 {[%clk 0:02:43]} 4... Nxd5 {[%clk 0:03:00.7]} 5. e4 {[%clk 0:02:43.5]} 5...
Nxc3 {[%clk 0:03:01.2]} 6. bxc3 {[%clk 0:02:44.4]} 6... Bg7 {[%clk 0:03:02.1]}
7. Bc4 {[%clk 0:02:44.5]} 7... c5 {[%clk 0:03:02.5]} 8. Ne2 {[%clk 0:02:44.7]}
8... O-O {[%clk 0:03:02.8]} 9. O-O {[%clk 0:02:44.6]} 9... Nc6 {[%clk
0:03:03.3]} 10. Be3 {[%clk 0:02:44.1]} 10... Qc7 {[%clk 0:03:03]} 11. Rc1 {[%clk
0:02:43.5]} 11... Rd8 {[%clk 0:03:02.2]} 12. Qd2 {[%clk 0:02:41]} 12... Bg4
{[%clk 0:02:55]} 13. f3 {[%clk 0:02:40.5]} 13... Bd7 {[%clk 0:02:54.3]} 14. Rfd1
{[%clk 0:02:39.6]} 14... Be8 {[%clk 0:02:54]} 15. a4 {[%clk 0:02:16.6]} 15...
Na5 {[%clk 0:02:52.9]} 16. Bb5 {[%clk 0:02:08.9]} 16... Nb3 {[%clk 0:02:48.9]}
17. Qd3 {[%clk 0:01:49.7]} 17... Nxc1 {[%clk 0:02:47.2]} 18. Rxc1 {[%clk
0:01:49.9]} 18... c4 {[%clk 0:02:44.3]} 19. Qb1 {[%clk 0:01:44.4]} 19... a6
{[%clk 0:02:39.3]} 20. Bxe8 {[%clk 0:01:42.9]} 20... Rxe8 {[%clk 0:02:40.2]} 21.
d5 {[%clk 0:01:40.6]} 21... e6 {[%clk 0:02:36.3]} 22. Rd1 {[%clk 0:01:25.5]}
22... exd5 {[%clk 0:02:34.4]} 23. Rxd5 {[%clk 0:01:25.3]} 23... Qc6 {[%clk
0:02:30.4]} 24. Nd4 {[%clk 0:01:19.7]} 24... Qxa4 {[%clk 0:02:28]} 25. Qxb7
{[%clk 0:01:17.5]} 25... Qa1+ {[%clk 0:02:24.5]} 26. Kf2 {[%clk 0:01:16.8]}
26... Qxc3 {[%clk 0:02:24.5]} 27. Ne2 {[%clk 0:01:15.6]} 27... Qb3 {[%clk
0:02:17.2]} 28. Qc6 {[%clk 0:01:08.3]} 28... c3 {[%clk 0:02:15]} 29. Rc5 {[%clk
0:00:57.1]} 29... a5 {[%clk 0:02:07.6]} 30. Nxc3 {[%clk 0:00:38.5]} 30... Qb2+
{[%clk 0:02:07.5]} 31. Kg3 {[%clk 0:00:35.5]} 31... Be5+ {[%clk 0:02:04.7]} 32.
Kh3 {[%clk 0:00:34.2]} 32... Rac8 {[%clk 0:02:00]} 33. Qxc8 {[%clk 0:00:33.7]}
33... Rxc8 {[%clk 0:02:00.9]} 34. Rxc8+ {[%clk 0:00:33.7]} 34... Kg7 {[%clk
0:02:01.7]} 35. Nd5 {[%clk 0:00:28.6]} 35... a4 {[%clk 0:02:00.3]} 36. Bc5
{[%clk 0:00:27.3]} 36... h5 {[%clk 0:01:58.3]} 37. Bf8+ {[%clk 0:00:25.6]} 37...
Kh7 {[%clk 0:01:58.4]} 38. Be7 {[%clk 0:00:13.4]} 38... a3 {[%clk 0:01:43.5]}
39. Bg5 {[%clk 0:00:11.3]} 39... a2 {[%clk 0:01:38.8]} 40. Rf8 {[%clk
0:00:11.2]} 40... Kg7 {[%clk 0:01:36.9]} 0-1

[Event "*** Titled Tuesday Blitz"]
[Site "Chess.com"]
[Date "2021.04.06"]
[Round "2"]
[White "DarZay"]
[Black "Trickov"]
[Result "1-0"]
[WhiteElo "2188"]
[BlackElo "2404"]
[TimeControl "180+1"]
[EndTime "10:17:32 PDT"]
[Termination "DarZay won by checkmate"]

1. e4 {[%clk 0:03:00.9]} 1... c5 {[%clk 0:02:58.2]} 2. Nf3 {[%clk 0:03:00.5]}
2... d6 {[%clk 0:02:57.9]} 3. d4 {[%clk 0:03:00.7]} 3... Nf6 {[%clk 0:02:57.6]}
4. Nc3 {[%clk 0:02:59]} 4... cxd4 {[%clk 0:02:57.1]} 5. Nxd4 {[%clk 0:02:58.9]}
5... a6 {[%clk 0:02:57.5]} 6. f3 {[%clk 0:02:56.1]} 6... e5 {[%clk 0:02:57.7]}
7. Nb3 {[%clk 0:02:55.7]} 7... Be6 {[%clk 0:02:57.9]} 8. Be3 {[%clk 0:02:55.5]}
8... Nbd7 {[%clk 0:02:57.9]} 9. Qd2 {[%clk 0:02:55.7]} 9... b5 {[%clk
0:02:57.7]} 10. Nd5 {[%clk 0:02:55.4]} 10... Bxd5 {[%clk 0:02:53.8]} 11. exd5
{[%clk 0:02:55.2]} 11... Nb6 {[%clk 0:02:53.7]} 12. Bxb6 {[%clk 0:02:52.2]}
12... Qxb6 {[%clk 0:02:53.2]} 13. O-O-O {[%clk 0:02:52.2]} 13... Be7 {[%clk
0:02:51.8]} 14. Kb1 {[%clk 0:02:50.5]} 14... O-O {[%clk 0:02:47.4]} 15. Bd3
{[%clk 0:02:48.2]} 15... a5 {[%clk 0:02:43.2]} 16. g4 {[%clk 0:02:45]} 16... a4
{[%clk 0:02:41.6]} 17. Nc1 {[%clk 0:02:44.1]} 17... b4 {[%clk 0:02:37.6]} 18. g5
{[%clk 0:02:38]} 18... Nh5 {[%clk 0:02:36.1]} 19. Ne2 {[%clk 0:02:34.7]} 19...
b3 {[%clk 0:02:29]} 20. cxb3 {[%clk 0:02:30.3]} 20... axb3 {[%clk 0:02:28.4]}
21. a3 {[%clk 0:02:30.3]} 21... Rfc8 {[%clk 0:02:09.9]} 22. f4 {[%clk
0:02:26.2]} 22... exf4 {[%clk 0:02:02.2]} 23. h4 {[%clk 0:02:24.6]} 23... Qe3
{[%clk 0:01:38]} 24. Qxe3 {[%clk 0:02:18.8]} 24... fxe3 {[%clk 0:01:37.7]} 25.
Rh3 {[%clk 0:02:18.4]} 25... g6 {[%clk 0:01:26.7]} 26. Rxe3 {[%clk 0:02:14.5]}
26... Bf8 {[%clk 0:01:26.8]} 27. Bb5 {[%clk 0:02:02.8]} 27... Bg7 {[%clk
0:01:23.2]} 28. Rxb3 {[%clk 0:01:59.2]} 28... Be5 {[%clk 0:01:15.8]} 29. Bc6
{[%clk 0:01:56.9]} 29... Rab8 {[%clk 0:01:13.4]} 30. Rxb8 {[%clk 0:01:56.7]}
30... Rxb8 {[%clk 0:01:13.2]} 31. b4 {[%clk 0:01:51.6]} 31... f5 {[%clk
0:01:04.3]} 32. Bd7 {[%clk 0:01:41.2]} 32... f4 {[%clk 0:00:58.6]} 33. Bg4
{[%clk 0:01:34.8]} 33... Ng3 {[%clk 0:00:51.8]} 34. Rc1 {[%clk 0:01:20.9]} 34...
Ne4 {[%clk 0:00:47.8]} 35. Rc7 {[%clk 0:01:13.9]} 35... Kh8 {[%clk 0:00:41.7]}
36. Rf7 {[%clk 0:01:09.7]} 36... Ra8 {[%clk 0:00:30.3]} 37. Nxf4 {[%clk
0:01:04.5]} 37... Rxa3 {[%clk 0:00:26.7]} 38. Rf8+ {[%clk 0:01:01]} 38... Kg7
{[%clk 0:00:22.3]} 39. Ne6# {[%clk 0:01:01.1]} 1-0

[Event "*** Titled Tuesday Blitz"]
[Site "Chess.com"]
[Date "2021.04.06"]
[Round "2"]
[White "ViditYT"]
[Black "LileKoridze"]
[Result "1-0"]
[WhiteElo "2935"]
[BlackElo "2477"]
[TimeControl "180+1"]
[EndTime "10:17:34 PDT"]
[Termination "ViditYT won by resignation"]

1. d4 {[%clk 0:03:00.9]} 1... Nf6 {[%clk 0:02:57.6]} 2. c4 {[%clk 0:03:00.8]}
2... e6 {[%clk 0:02:57.2]} 3. Nf3 {[%clk 0:02:59.3]} 3... d5 {[%clk 0:02:55.2]}
4. g3 {[%clk 0:02:59.4]} 4... Bb4+ {[%clk 0:02:54.8]} 5. Bd2 {[%clk 0:02:59.5]}
5... Be7 {[%clk 0:02:54.2]} 6. Bg2 {[%clk 0:02:59.7]} 6... O-O {[%clk
0:02:51.9]} 7. O-O {[%clk 0:03:00.4]} 7... c6 {[%clk 0:02:52.3]} 8. Qc2 {[%clk
0:03:01]} 8... b6 {[%clk 0:02:52.8]} 9. Rd1 {[%clk 0:03:00.9]} 9... Bb7 {[%clk
0:02:52.1]} 10. b3 {[%clk 0:03:01.2]} 10... Nbd7 {[%clk 0:02:47.3]} 11. a4
{[%clk 0:02:58.5]} 11... Ne4 {[%clk 0:02:36.4]} 12. Be1 {[%clk 0:02:56.2]} 12...
f5 {[%clk 0:02:15.5]} 13. a5 {[%clk 0:02:55.1]} 13... c5 {[%clk 0:02:09.5]} 14.
a6 {[%clk 0:02:45.9]} 14... Bc6 {[%clk 0:02:07.2]} 15. cxd5 {[%clk 0:02:24.2]}
15... Bxd5 {[%clk 0:02:05]} 16. Nc3 {[%clk 0:02:13.7]} 16... Nxc3 {[%clk
0:01:57.5]} 17. Bxc3 {[%clk 0:02:14.6]} 17... Rc8 {[%clk 0:01:55.8]} 18. Qb2
{[%clk 0:02:14.1]} 18... cxd4 {[%clk 0:01:35.8]} 19. Nxd4 {[%clk 0:02:03.7]}
19... Rf6 {[%clk 0:00:45.5]} 20. Nb5 {[%clk 0:01:37.9]} 20... Bxg2 {[%clk
0:00:43.2]} 21. Kxg2 {[%clk 0:01:38.2]} 21... Rg6 {[%clk 0:00:35.5]} 22. Nxa7
{[%clk 0:01:34.7]} 22... Ra8 {[%clk 0:00:29]} 23. Nc6 {[%clk 0:01:22.2]} 23...
Qe8 {[%clk 0:00:25.8]} 24. b4 {[%clk 0:01:15.3]} 24... Nf6 {[%clk 0:00:17.8]}
25. b5 {[%clk 0:01:12.6]} 25... Ne4 {[%clk 0:00:15]} 26. Bd4 {[%clk 0:01:11.1]}
26... Bc5 {[%clk 0:00:12.3]} 27. Bxc5 {[%clk 0:01:10.1]} 27... Nxc5 {[%clk
0:00:13.2]} 28. a7 {[%clk 0:01:05.3]} 28... f4 {[%clk 0:00:08.1]} 29. Rd8 {[%clk
0:00:51.9]} 1-0